bitfinex-derivatives/quotes_ETHF0:USTF0_20260112
["timestamp","ask_amount","ask_price","bid_price","bid_amount"]
[1768182497569,0.83250597,3127.2,3126.5,1.106]
[1768182497767,0.24001511,3128.1,3126.5,1.106]
[1768182497975,1.16295112,3128.0,3126.5,1.106]
[1768182498174,0.83290447,3127.9,3126.5,1.106]
[1768182498375,0.83290447,3127.8,3126.5,1.106]
[1768182498681,0.83290447,3127.7,3126.5,1.106]
[1768182498870,0.83290447,3127.6,3126.5,1.106]
[1768182499070,0.83290447,3127.5,3126.5,1.106]
[1768182499377,0.83290447,3127.4,3126.5,1.106]
[1768182499574,0.83290447,3127.3,3126.5,1.106]
[1768182499774,0.24001511,3128.1,3126.5,1.106]
[1768182499968,1.16250362,3128.0,3126.5,1.106]
[1768182500170,0.83259244,3127.9,3126.5,1.106]
[1768182500482,0.83259244,3127.8,3126.5,1.106]
[1768182500676,0.83259244,3127.7,3126.5,1.106]
[1768182500978,0.83259244,3127.6,3126.5,1.106]
[1768182501178,0.83259244,3127.5,3126.5,1.106]
[1768182501377,0.83259244,3127.4,3126.5,1.106]
[1768182501673,0.83259244,3127.3,3126.5,1.106]
[1768182501878,0.24001511,3128.1,3126.5,1.106]
[1768182502079,1.16516799,3128.0,3126.5,1.106]
[1768182502282,0.8353646,3127.9,3126.5,1.106]
[1768182502580,0.8353646,3127.8,3126.5,1.106]
[1768182502882,0.8353646,3127.7,3126.5,1.106]
[1768182503078,0.8353646,3127.6,3126.5,1.106]
[1768182503383,0.8353646,3127.5,3126.5,1.106]
[1768182503585,0.8353646,3127.4,3126.5,1.106]
[1768182503775,0.8353646,3127.3,3126.5,1.106]
[1768182503979,0.8353646,3127.2,3126.5,1.106]
[1768182504277,0.8353646,3127.1,3126.5,1.106]
[1768182504480,0.24001511,3127.7,3126.5,1.106]
[1768182504682,0.83582712,3127.6,3126.5,1.106]
[1768182504874,0.83582712,3127.5,3126.5,1.106]
[1768182505074,0.83582712,3127.4,3126.5,1.106]
[1768182505275,0.83582712,3127.3,3126.5,1.106]
[1768182506579,0.83582712,3127.3,3126.7,1.23604214]
[1768182506781,0.83582712,3127.2,3126.8,0.25199835]
[1768182506977,0.98404379,3127.9,3126.8,0.25199835]
[1768182507178,1.1659481,3127.8,3126.8,0.25199835]
[1768182507378,0.8359215,3127.7,3126.8,0.25199835]
[1768182508879,0.8359215,3127.7,3126.9,0.98404379]
[1768182509075,0.8359215,3127.6,3126.9,1.23604214]
[1768182509280,0.8359215,3127.5,3126.9,0.25199835]
[1768182509475,0.8359215,3127.4,3126.9,0.25199835]
[1768182509682,0.98404379,3128.0,3126.9,0.25199835]
[1768182509879,1.16657898,3127.9,3126.9,0.25199835]
[1768182510079,0.8363768,3127.8,3126.9,0.25199835]
[1768182510282,0.8363768,3127.7,3126.9,0.25199835]
[1768182510482,0.8363768,3127.6,3126.9,0.25199835]
[1768182510781,0.8363768,3127.5,3126.9,0.25199835]
[1768182510983,0.8363768,3127.4,3126.9,0.25199835]
[1768182511184,0.98404379,3128.0,3126.9,0.25199835]
[1768182511374,1.16649383,3127.9,3126.9,0.25199835]
[1768182511575,0.83632023,3127.8,3126.9,0.25199835]
[1768182511779,0.83632023,3127.7,3126.5,1.106]
[1768182512082,0.83632023,3127.6,3126.5,2.09004379]
[1768182512280,0.83632023,3127.5,3126.5,2.09004379]
[1768182512482,0.83632023,3127.4,3126.5,2.34204214]
[1768182512679,0.98404379,3127.8,3126.5,2.34204214]
[1768182512880,0.83628139,3127.7,3126.5,2.34204214]
[1768182513078,0.83628139,3127.6,3126.5,2.34204214]
[1768182513281,0.83628139,3127.5,3126.5,2.34204214]
[1768182513476,0.83628139,3127.4,3126.5,1.35799835]
[1768182513677,0.98404379,3127.6,3126.5,1.35799835]
[1768182513877,0.83616264,3127.5,3126.5,1.35799835]
[1768182514080,0.83616264,3127.4,3126.5,1.35799835]
[1768182514276,0.98404379,3127.6,3126.5,1.35799835]
[1768182514584,0.83628144,3127.5,3126.6,0.25262861]
[1768182514783,0.83628144,3127.4,3126.6,0.25262861]
[1768182514985,0.98404379,3127.9,3126.6,0.25262861]
[1768182515183,0.83622818,3127.8,3126.6,0.25262861]
[1768182515384,0.83622818,3127.7,3126.6,0.25262861]
[1768182515583,0.83622818,3127.6,3126.6,0.25262861]
[1768182515784,0.83622818,3127.5,3126.6,0.25262861]
[1768182515984,0.83622818,3127.4,3126.7,1.2366724]
[1768182516198,2.37104379,3128.1,3126.8,0.25262861]
[1768182516380,0.83649813,3128.0,3126.8,0.25262861]
[1768182516684,0.83649813,3127.9,3126.8,0.25262861]
[1768182516883,0.83649813,3127.8,3126.8,0.25262861]
[1768182517189,0.83649813,3127.7,3126.8,0.25262861]
[1768182517487,0.83649813,3127.6,3126.8,0.25262861]
[1768182517785,0.83649813,3127.5,3126.8,0.25262861]
[1768182517986,0.83649813,3127.4,3126.8,0.25262861]
[1768182518282,0.83649813,3127.3,3126.8,0.25262861]
[1768182518489,0.83649813,3127.2,3126.8,0.25262861]
[1768182518688,0.83649813,3127.1,3126.8,0.25262861]
[1768182518880,2.37104379,3128.1,3126.8,0.25262861]
[1768182519083,0.83662913,3128.0,3126.8,0.25262861]
[1768182519282,0.83662913,3127.9,3126.8,0.25262861]
[1768182519482,0.83662913,3127.8,3126.8,0.25262861]
[1768182519682,0.83662913,3127.7,3126.8,0.25262861]
[1768182519883,0.83662913,3127.6,3126.8,0.25262861]
[1768182520090,0.83662913,3127.5,3126.8,0.25262861]
[1768182520390,0.83662913,3127.4,3126.8,0.25262861]
[1768182520586,0.31310039,3127.3,3127.0,0.25262861]
[1768182520783,5.21970868,3128.2,3126.9,0.98404379]
[1768182520979,0.56765975,3128.1,3126.9,0.98404379]
[1768182521184,0.23735105,3128.1,3126.9,0.98404379]
[1768182521584,2.84866489,3128.3,3127.3,0.98404379]
[1768182521788,4.25754683,3128.5,3127.9,0.98404379]
[1768182521789,0.00239163,3128.5,3127.9,0.98404379]
[1768182521986,0.00239163,3128.5,3127.8,0.98404379]
[1768182525082,0.00239163,3128.5,3127.6,0.98404379]
[1768182534809,0.23974268,3128.5,3127.0,0.16012]
[1768182535111,0.23735105,3128.3,3127.1,2.39804379]
[1768182535509,0.23735105,3128.3,3127.3,0.98404379]
[1768182535706,0.00239163,3128.5,3127.3,0.98404379]
[1768182537610,0.00239163,3128.5,3127.5,0.98404379]
[1768182537998,0.00239163,3128.5,3127.7,0.98404379]
[1768182538506,0.00239163,3128.5,3127.5,0.98404379]
[1768182539904,0.00239163,3128.5,3127.1,1.62173556]
[1768182540096,0.00239163,3128.5,3127.5,0.98404379]
[1768182541410,0.23735105,3129.5,3128.4,0.98404379]
[1768182541604,0.98404379,3129.3,3128.0,0.98404379]
[1768182541907,0.82159121,3129.2,3128.0,0.98404379]
[1768182542107,1.22139484,3129.7,3128.4,0.98404379]
[1768182542312,0.82074024,3129.6,3128.6,0.98404379]
[1768182542515,0.24111824,3129.7,3128.6,0.98703156]
[1768182544405,0.00376719,3129.7,3129.0,0.98404379]
[1768182546414,0.00376719,3129.7,3128.8,0.98404379]
[1768182546809,10.59904643,3130.8,3129.8,0.98404379]
[1768182547011,0.25704643,3130.8,3129.6,0.98404379]
[1768182547206,1.24109022,3130.8,3129.6,0.98404379]
[1768182547823,1.24434359,3130.8,3129.4,0.98404379]
[1768182548117,0.98404379,3130.6,3129.4,0.98404379]
[1768182549012,0.2602998,3130.8,3129.6,0.98404379]
[1768182549413,0.2602998,3130.8,3129.8,0.98404379]
[1768182549608,0.2602998,3130.8,3129.6,0.98404379]
[1768182550002,0.2602998,3130.8,3129.8,0.98404379]
[1768182550204,0.00325337,3130.8,3129.8,0.98404379]
[1768182550409,0.00325337,3130.8,3130.0,0.98404379]
[1768182551118,0.00325337,3130.8,3129.8,0.98404379]
[1768182551424,0.00325337,3130.8,3130.0,0.98404379]
[1768182551617,0.25439867,3131.6,3130.4,0.98404379]
[1768182552016,0.25439867,3131.6,3130.6,0.98404379]
[1768182552219,0.25439867,3131.6,3130.4,0.98404379]
[1768182553123,0.98404379,3131.5,3130.2,0.98404379]
[1768182553326,0.98404379,3131.1,3129.9,0.98404379]
[1768182554829,0.25439867,3131.2,3130.1,0.98404379]
[1768182555826,0.98404379,3131.5,3130.3,0.98404379]
[1768182557430,0.25439867,3131.2,3129.7,11.7]
[1768182557624,0.25439867,3131.2,3129.9,0.98404379]
[1768182557926,0.25439867,3131.2,3130.1,0.98404379]
[1768182560424,0.25439867,3131.2,3129.9,0.98404379]
[1768182561023,0.25439867,3131.2,3130.1,0.98404379]
[1768182563231,0.00328559,3131.6,3130.3,0.98404379]
[1768182563434,0.00328559,3131.6,3130.5,0.98404379]
[1768182564528,0.00328559,3131.6,3130.6,1.0789]
[1768182564929,0.00328559,3131.6,3131.2,0.98404379]
[1768182565130,0.25439867,3132.1,3131.2,0.98638001]
[1768182565436,0.25439867,3132.1,3131.4,0.98404379]
[1768182565630,0.25439867,3132.6,3131.4,0.98404379]
[1768182566036,0.25773159,3132.6,3131.4,0.98404379]
[1768182566230,1.24177538,3132.6,3131.2,0.00233622]
[1768182566436,1.24177538,3132.6,3131.3,0.98404379]
[1768182566738,0.25439867,3132.5,3131.3,0.98404379]
[1768182567337,0.25439867,3132.5,3131.2,0.00233622]
[1768182572247,0.00333292,3132.6,3131.2,0.00233622]
[1768182572936,0.00333292,3132.6,3131.2,11.70233622]
[1768182573544,0.00333292,3132.6,3131.5,1.19517568]
[1768182573742,0.25439867,3133.3,3131.5,1.19517568]
[1768182574840,0.25699993,3133.3,3131.2,11.86221622]
[1768182579937,0.25699993,3133.3,3131.2,13.12233622]
[1768182580341,0.25810339,3133.2,3131.2,13.12233622]
[1768182580542,0.41788339,3133.2,3131.2,13.12233622]
[1768182580742,0.25810339,3133.1,3131.2,13.12233622]
[1768182580939,0.25810339,3133.1,3131.2,1.42233622]
[1768182581142,0.15981,3132.8,3131.2,0.00233622]
[1768182581345,0.25810339,3132.7,3131.2,0.00233622]
[1768182581544,0.25810339,3132.5,3131.2,0.00233622]
[1768182584855,0.25810339,3132.2,3130.6,1.0789]
[1768182585848,0.25810339,3132.2,3130.6,1.08263717]
[1768182587053,0.15984,3132.1,3130.6,1.08263717]
[1768182587255,0.25810339,3132.0,3130.6,1.08263717]
[1768182589456,0.25810339,3131.9,3130.6,1.08263717]
[1768182593361,1.381,3131.8,3130.6,1.08263717]
[1768182593559,0.25810339,3131.7,3130.6,1.08263717]
[1768182600761,0.15984,3132.1,3130.6,2.06414872]
[1768182600961,0.25810339,3132.2,3130.6,2.06414872]
[1768182601867,0.25810339,3132.2,3130.6,1.08263717]
[1768182604972,0.25966781,3132.0,3130.6,1.08263717]
[1768182607971,0.25966781,3131.9,3130.6,1.08263717]
[1768182609278,0.25966781,3131.6,3130.6,1.08263717]
[1768182609474,0.25966781,3131.6,3129.3,0.98151155]
[1768182609475,0.25966781,3131.5,3129.3,0.98151155]
[1768182609679,0.24399868,3131.3,3129.3,3.48881241]
[1768182610073,0.24399868,3131.3,3129.4,11.90994538]
[1768182610679,0.15987,3131.6,3129.5,0.20994538]
[1768182611072,1.54087,3131.6,3129.6,0.20978621]
[1768182611572,1.78486868,3131.6,3129.6,0.20978621]
[1768182611771,0.40386868,3131.6,3129.8,0.98151155]
[1768182612178,0.24399868,3131.5,3129.8,0.98151155]
[1768182612975,1.381,3131.8,3129.9,0.20826761]
[1768182613183,0.24399868,3132.0,3130.3,0.20826761]
[1768182614782,0.24399868,3132.0,3130.2,0.98151155]
[1768182616479,0.24399868,3132.0,3130.6,0.98151155]
[1768182616684,1.54083,3132.3,3130.6,0.98151155]
[1768182617080,1.78482868,3132.3,3130.6,0.98151155]
[1768182617589,0.24399868,3132.2,3130.6,0.98151155]
[1768182619085,0.24399868,3132.2,3130.2,0.21020639]
[1768182619086,0.24399868,3132.2,3130.2,1.19171794]
[1768182620787,0.24399868,3132.2,3129.9,0.98151155]
[1768182620978,0.24399868,3132.0,3129.9,0.98151155]
[1768182621180,0.24399868,3132.0,3129.8,0.36831831]
[1768182621381,0.24399868,3132.0,3130.1,0.98151155]
[1768182622489,0.24399868,3132.0,3129.8,0.36831831]
[1768182622689,0.24399868,3132.0,3129.8,1.34982986]
[1768182624590,0.24399868,3132.0,3129.8,1.18986986]
[1768182624791,0.24399868,3131.6,3129.6,4.10481081]
[1768182624987,0.24399868,3131.6,3129.6,1.80761155]
[1768182626293,0.24399868,3131.6,3129.6,0.8261]
[1768182626893,0.24399868,3131.6,3129.9,0.98151155]
[1768182627095,1.62499868,3131.6,3130.0,0.20730547]
[1768182627286,1.62499868,3131.6,3130.5,0.98135676]
[1768182627488,0.24399868,3131.6,3130.5,0.98135676]
[1768182627695,0.15985,3131.9,3130.7,0.98135676]
[1768182627898,1.381,3131.8,3130.7,0.98135676]
[1768182628097,0.40384868,3131.9,3130.7,0.98135676]
[1768182628299,1.78484868,3131.9,3130.7,0.98135676]
[1768182629291,2.76620544,3131.9,3130.7,0.98135676]
[1768182629499,0.24399868,3131.6,3130.2,0.98135676]
[1768182632207,0.98135676,3131.3,3130.0,0.98135676]
[1768182632398,0.24399868,3131.4,3130.0,0.98135676]
[1768182632594,0.24399868,3131.4,3130.2,0.98135676]
[1768182632798,0.24399868,3131.4,3130.4,0.98135676]
[1768182633907,2.36335676,3131.7,3130.4,0.98135676]
[1768182634106,0.24667288,3131.6,3129.8,2.50459876]
[1768182634303,0.24667288,3131.6,3130.4,0.98135676]
[1768182634700,0.24667288,3131.6,3129.8,2.50459876]
[1768182634898,0.24667288,3131.4,3130.1,0.98135676]
[1768182635301,0.24667288,3131.4,3130.3,0.98135676]
[1768182636810,1.382,3131.7,3129.9,0.20483828]
[1768182637001,1.382,3131.7,3130.6,0.98135676]
[1768182637615,1.62867288,3131.7,3129.9,0.20483828]
[1768182637807,1.22802964,3131.6,3130.3,0.98135676]
[1768182638406,0.24667288,3131.5,3130.3,0.98135676]
[1768182638804,1.22802964,3131.4,3130.1,0.98135676]
[1768182640109,0.24667288,3131.4,3130.3,0.98135676]
[1768182644218,1.22802964,3131.4,3129.6,3.32699639]
[1768182644412,1.22802964,3131.4,3130.1,0.98135676]
[1768182650331,0.98135676,3131.5,3130.1,0.98135676]
[1768182650524,0.32980714,3131.4,3130.1,0.98135676]
[1768182650720,0.98135676,3131.5,3130.1,0.98135676]
[1768182651024,0.32982254,3131.4,3130.1,0.98135676]
[1768182651326,0.98135676,3131.5,3130.1,0.98135676]
[1768182651525,0.32977232,3131.4,3130.1,0.98135676]
[1768182651726,0.98135676,3131.5,3130.1,0.98135676]
[1768182651928,0.32972163,3131.4,3130.1,0.98135676]
[1768182652232,1.22802964,3131.5,3130.1,0.98135676]
[1768182652429,0.32982802,3131.4,3130.1,0.98135676]
[1768182652631,1.22802964,3131.5,3130.1,0.98135676]
[1768182652832,0.3298962,3131.4,3130.5,0.98135676]
[1768182653032,0.24667288,3131.5,3130.5,0.98135676]
[1768182653228,0.32994952,3131.4,3130.5,0.98135676]
[1768182653432,1.38,3131.7,3130.5,0.98135676]
[1768182653628,0.32994558,3131.6,3130.7,0.98135676]
[1768182653834,1.62767288,3131.9,3130.7,0.98135676]
[1768182654031,0.32997092,3131.8,3130.7,0.98135676]
[1768182654232,0.32997092,3131.7,3130.7,0.98135676]
[1768182654534,1.62767288,3131.9,3130.7,0.98135676]
[1768182654723,0.32996508,3131.8,3130.7,0.98135676]
[1768182654927,0.24667288,3131.9,3130.7,0.98135676]
[1768182655127,2.86279555,3132.3,3131.3,0.98135676]
[1768182655128,0.24667288,3132.3,3131.3,0.98135676]
[1768182655324,0.24667288,3132.6,3131.3,0.98135676]
[1768182656130,0.98135676,3132.5,3131.3,0.98135676]
[1768182656328,1.22802964,3132.5,3131.1,0.98135676]
[1768182659630,1.22802964,3132.5,3130.7,11.90399531]
[1768182659631,0.24667288,3132.5,3131.3,0.98135676]
[1768182660126,0.24667288,3132.2,3130.7,11.7]
[1768182660334,1.22802964,3132.1,3130.8,0.98135676]
[1768182662340,0.24667288,3132.0,3130.8,0.98135676]
[1768182663036,1.22802964,3131.9,3130.4,0.15992]
[1768182663230,1.22802964,3131.9,3130.5,0.98135676]
[1768182665343,1.22802964,3131.9,3130.7,0.98135676]
[1768182665543,0.24667288,3131.9,3130.7,0.98135676]
[1768182669741,1.22661207,3132.3,3130.9,0.98135676]
[1768182670043,0.24525531,3132.2,3130.9,0.98135676]
[1768182670338,0.24525531,3132.2,3130.8,0.98135676]
[1768182670541,0.24525531,3132.0,3130.8,0.98135676]
[1768182671142,0.24525531,3132.0,3130.7,0.98135676]
[1768182671844,0.98135676,3132.1,3130.7,0.98135676]
[1768182674742,0.98135676,3132.1,3130.8,0.911]
[1768182674942,1.22661207,3132.1,3130.8,0.911]
[1768182677432,0.98135676,3131.5,3130.8,0.911]
[1768182677843,0.24525531,3131.8,3130.8,0.911]
[1768182677844,0.98135676,3131.7,3130.8,0.911]
[1768182678543,1.22661207,3131.7,3130.8,0.911]
[1768182680044,0.24525531,3131.7,3130.8,0.911]
[1768182680732,1.22661207,3131.7,3130.8,0.911]
[1768182682142,0.24525531,3131.6,3130.8,0.911]
[1768182682349,0.24525531,3131.2,3130.8,0.911]
[1768182683756,0.24525531,3131.0,3130.8,0.38985837]
[1768182684049,0.24857473,3131.0,3130.8,0.38985837]
[1768182684753,0.00331942,3131.0,3130.8,0.38985837]
[1768182686860,0.24525531,3131.8,3130.8,0.38985837]
[1768182687355,0.98135676,3132.0,3130.8,0.38985837]
[1768182687748,1.22661207,3132.0,3130.8,0.38985837]
[1768182687956,0.98135676,3131.8,3130.8,0.38985837]
[1768182689056,0.24901776,3132.0,3130.8,0.38985837]
[1768182689252,0.98135676,3131.8,3130.8,0.38985837]
[1768182689460,0.24901776,3132.0,3130.8,0.38985837]
[1768182692356,0.24525531,3131.8,3130.8,0.38985837]
[1768182693760,1.379,3131.7,3130.8,0.38985837]
[1768182693961,0.24525531,3131.8,3130.8,0.38985837]
[1768182694163,1.379,3131.7,3130.8,0.38985837]
[1768182694660,1.63146393,3131.7,3130.8,0.38985837]
[1768182694862,0.25246393,3131.7,3130.8,0.38985837]
[1768182695058,1.63146393,3131.7,3130.8,0.38985837]
[1768182695761,0.25246393,3131.7,3130.8,0.38985837]
[1768182704565,1.63046393,3131.7,3130.8,0.38985837]
[1768182705270,0.25246393,3131.6,3130.8,0.38985837]
[1768182710476,1.378,3131.7,3129.6,13.125]
[1768182710477,0.25246393,3131.3,3129.6,3.72803822]
[1768182710772,0.25246393,3131.3,3129.6,2.30303822]
[1768182715372,1.378,3131.4,3129.7,0.18400493]
[1768182716072,1.378,3131.4,3129.8,1.16542245]
[1768182716381,1.378,3131.4,3129.8,12.86542245]
[1768182716578,0.25246393,3131.7,3129.8,12.86542245]
[1768182716780,0.25246393,3131.5,3129.8,12.86542245]
[1768182717678,0.25246393,3131.4,3129.9,2.30303822]
[1768182720789,0.25246393,3131.2,3129.8,2.30303822]
[1768182721888,0.25246393,3131.6,3130.0,0.98129466]
[1768182722106,0.25622638,3132.0,3130.4,0.98129466]
[1768182722291,0.25622638,3132.0,3130.5,0.98129466]
[1768182722597,0.25622638,3132.0,3130.6,0.98129466]
[1768182722598,0.00376245,3132.0,3130.6,0.98129466]
[1768182723110,0.00376245,3132.0,3130.6,1.17255305]
[1768182724899,0.00376245,3132.0,3130.5,2.30303822]
[1768182725106,0.23934453,3132.0,3130.5,2.30303822]
[1768182725597,0.23934453,3132.0,3130.4,2.30303822]
[1768182727400,0.23934453,3132.0,3130.3,2.30303822]
[1768182728105,0.23934453,3132.0,3130.2,2.30303822]
[1768182728797,0.23558208,3131.9,3130.2,2.30303822]
[1768182728989,0.23558208,3131.9,3130.0,2.30303822]
[1768182729593,0.23558208,3131.5,3129.9,2.30303822]
[1768182729796,0.23558208,3131.5,3129.7,3.28433288]
[1768182730203,0.23558208,3131.5,3129.9,0.19599483]
[1768182732206,0.23558208,3131.5,3129.7,2.30303822]
[1768182732504,0.23558208,3131.5,3129.6,2.30303822]
[1768182735912,0.23558208,3131.5,3129.7,0.19458973]
[1768182736504,0.23558208,3131.5,3129.8,0.98129466]
[1768182737112,0.23558208,3131.5,3129.8,1.17491568]
[1768182739111,0.23558208,3131.5,3129.9,0.19485375]
[1768182739411,0.23558208,3131.5,3130.0,1.435]
[1768182740014,0.15986,3131.8,3130.0,1.62995927]
[1768182740304,0.572283,3131.7,3130.0,1.62995927]
[1768182740509,0.24222347,3131.7,3130.0,1.62995927]
[1768182743209,0.24222347,3131.7,3130.0,1.435]
[1768182750721,0.24222347,3131.7,3130.2,0.98129466]
[1768182751422,0.24222347,3131.7,3130.5,0.98136088]
[1768182752222,0.24222347,3131.5,3130.4,0.98136088]
[1768182753227,0.24222347,3131.3,3130.0,2.41636088]
[1768182753518,0.24222347,3131.3,3130.0,0.98136088]
[1768182754228,0.24222347,3131.3,3130.2,0.98136088]
[1768182755624,0.25371452,3131.7,3130.4,0.98136088]
[1768182755924,1.62971452,3131.7,3130.4,0.98136088]
[1768182757328,0.98136088,3131.2,3129.9,2.46298822]
[1768182757528,0.98136088,3131.2,3130.1,0.98136088]
[1768182757529,0.25371452,3131.2,3130.1,0.98136088]
[1768182757922,1.376,3131.7,3130.3,0.98136088]
[1768182757923,1.2350754,3131.6,3130.3,0.98136088]
[1768182758322,0.25371452,3131.6,3130.3,0.98136088]
[1768182760634,0.25371452,3131.6,3130.5,0.98136088]
[1768182762843,0.25371452,3131.6,3130.0,0.186713]
[1768182763027,0.25371452,3131.6,3130.4,0.98136088]
[1768182764736,0.25371452,3131.6,3130.6,0.98136088]
[1768182766136,0.25371452,3131.6,3130.4,0.98136088]
[1768182767337,0.25371452,3131.6,3130.5,0.98136088]
[1768182772338,0.98136088,3131.3,3130.0,2.30303822]
[1768182772543,1.2350754,3131.3,3130.0,3.2843991]
[1768182772842,1.2350754,3131.3,3130.1,1.2073]
[1768182773138,1.2350754,3131.0,3130.1,1.2073]
[1768182774832,0.25371452,3130.7,3130.1,1.2073]
[1768182775236,0.25371452,3130.5,3130.1,1.2073]
[1768182776645,2.35736088,3130.8,3130.1,0.35396896]
[1768182777339,0.98136088,3130.4,3129.5,0.23945361]
[1768182777535,0.98136088,3130.6,3129.5,0.23945361]
[1768182780350,2.35736088,3130.6,3129.5,0.23945361]
[1768182780640,0.98136088,3130.2,3129.5,0.23945361]
[1768182780843,0.98136088,3130.0,3129.4,0.00400854]
[1768182781740,0.98136088,3130.2,3129.4,0.00400854]
[1768182782146,0.98136088,3129.8,3129.4,0.00400854]
[1768182782340,0.00304025,3129.8,3129.4,0.00400854]
[1768182782744,0.00304025,3129.8,3129.4,0.24346215]
[1768182784950,0.98136088,3131.1,3129.4,0.24346215]
[1768182785248,0.98136088,3130.8,3129.4,0.24346215]
[1768182785454,1.375,3130.7,3129.4,0.24346215]
[1768182785847,0.98136088,3130.6,3129.4,0.24346215]
[1768182786049,0.98541577,3130.6,3129.4,0.24346215]
[1768182786442,0.00405489,3130.6,3129.7,0.98136088]
[1768182786647,0.00405489,3130.6,3129.8,0.26026256]
[1768182789650,0.98136088,3130.5,3129.8,0.26026256]
[1768182790556,0.98136088,3130.3,3129.8,0.26026256]
[1768182790756,0.98136088,3130.3,3129.4,0.24847751]
[1768182791243,0.98136088,3130.5,3129.4,0.24847751]
[1768182791743,0.00405489,3130.6,3129.4,0.24847751]
[1768182791945,0.98541577,3130.6,3129.4,0.24847751]
[1768182792249,2.36041577,3130.6,3129.4,0.24847751]
[1768182792557,1.37905489,3130.6,3129.4,0.24847751]
[1768182793050,1.37905489,3130.6,3129.6,0.24446897]
[1768182793355,0.00405489,3130.6,3129.6,0.24446897]
[1768182796454,0.98541577,3130.6,3129.6,0.24446897]
[1768182796659,0.98136088,3130.4,3129.6,0.24446897]
[1768182797053,0.98136088,3130.4,3129.4,0.24847751]
[1768182799559,0.98136088,3130.2,3129.4,0.24847751]
[1768182799760,0.98136088,3130.2,3129.4,0.00400854]
[1768182800554,0.84313898,3130.1,3129.4,0.00400854]
[1768182800762,0.98136088,3130.1,3129.4,0.00400854]
[1768182801658,0.84660044,3130.0,3129.4,0.00400854]
[1768182801860,0.84660044,3129.9,3129.4,0.00400854]
[1768182802060,0.84703776,3129.8,3129.4,0.00400854]
[1768182802261,0.98136088,3130.1,3129.4,0.00400854]
[1768182802459,0.84702802,3130.0,3129.4,0.00400854]
[1768182802763,0.84702802,3129.9,3129.4,0.00400854]
[1768182802964,0.84702802,3129.8,3129.4,0.00400854]
[1768182803163,0.84756422,3129.7,3129.4,0.00400854]
[1768182803365,0.98136088,3129.9,3129.4,0.00400854]
[1768182803564,0.84757472,3129.8,3129.4,0.00400854]
[1768182803863,1.8289356,3129.7,3128.1,0.16004]
[1768182804061,0.98136088,3129.5,3128.3,0.24446897]
[1768182804256,0.84757472,3129.4,3128.3,0.24446897]
[1768182804459,0.84757472,3129.3,3128.3,0.24446897]
[1768182804666,0.84757472,3129.2,3128.3,0.24446897]
[1768182804866,0.84757472,3129.1,3128.3,0.24812074]
[1768182805167,1.374,3129.8,3128.3,0.24812074]
[1768182805364,0.98136088,3129.6,3128.4,0.24446897]
[1768182805564,0.84731863,3129.5,3128.4,0.24446897]
[1768182805864,0.84731863,3129.4,3128.4,0.24446897]
[1768182806067,0.84731863,3129.4,3128.3,0.98501265]
[1768182806068,0.57568037,3129.3,3128.8,0.24446897]
[1768182806260,1.374,3130.1,3128.9,1.22582985]
[1768182806566,0.98136088,3129.5,3128.3,0.00365177]
[1768182811775,1.22701999,3129.5,3128.3,0.00365177]
[1768182812174,0.98136088,3129.1,3128.3,0.00365177]
[1768182812379,0.98136088,3129.3,3128.3,0.00365177]
[1768182812767,0.24565911,3129.5,3128.3,0.00365177]
[1768182812968,1.22701999,3129.5,3128.3,0.00365177]
[1768182813370,0.24565911,3129.5,3128.3,0.00365177]
[1768182818178,0.27419841,3129.3,3128.3,0.00365177]
[1768182818475,0.84345033,3129.2,3128.3,0.00365177]
[1768182820078,1.373,3129.9,3128.4,0.26687821]
[1768182820385,0.84347805,3129.8,3128.4,0.26687821]
[1768182820682,0.84347805,3129.7,3128.4,0.26687821]
[1768182820873,0.84347805,3129.6,3128.4,0.26687821]
[1768182821079,0.27419841,3129.9,3128.4,0.26687821]
[1768182826891,1.376,3129.8,3128.4,0.26687821]
[1768182829385,1.65019841,3129.8,3128.4,0.26687821]
[1768182832496,1.11838282,3129.7,3128.3,0.00365177]
[1768182832694,0.84418441,3129.6,3128.3,0.00365177]
[1768182834497,0.27419841,3129.5,3128.3,0.00365177]
[1768182834799,0.27419841,3129.3,3128.3,0.00365177]
[1768182834985,1.11838282,3129.2,3128.3,0.00365177]
[1768182835187,0.84418441,3129.1,3128.3,1.28245177]
[1768182837192,0.84418441,3129.0,3128.3,1.28245177]
[1768182837394,0.27419841,3129.6,3128.3,1.28245177]
[1768182837694,0.84488947,3129.5,3128.3,1.28245177]
[1768182837893,0.84488947,3129.4,3128.3,1.28245177]
[1768182838197,0.84488947,3129.3,3128.3,1.28245177]
[1768182838388,0.84488947,3129.2,3128.3,1.28245177]
[1768182838589,0.84488947,3129.1,3128.3,1.28245177]
[1768182838791,0.27419841,3129.5,3128.3,1.28245177]
[1768182838990,0.84510476,3129.4,3128.3,1.28245177]
[1768182839194,0.84510476,3129.3,3128.3,1.28245177]
[1768182839396,0.27419841,3129.5,3128.3,1.28245177]
[1768182839397,0.84510476,3129.2,3128.3,1.28245177]
[1768182839595,0.84510476,3129.1,3128.3,1.28245177]
[1768182839894,1.376,3129.4,3128.3,1.28245177]
[1768182840097,0.84515201,3129.3,3128.3,1.28245177]
[1768182840291,0.84515201,3129.2,3128.3,1.28245177]
[1768182840487,0.27419841,3129.0,3128.3,1.28245177]
[1768182840898,1.25707031,3129.4,3128.3,1.28245177]
[1768182841103,0.84528468,3129.3,3128.3,1.28245177]
[1768182841394,0.84528468,3129.2,3128.3,1.28245177]
[1768182841594,0.84528468,3129.1,3128.3,1.28245177]
[1768182841795,0.84528468,3129.0,3128.3,1.28245177]
[1768182841998,1.25707031,3129.4,3128.3,1.28245177]
[1768182842198,0.84527382,3129.3,3128.3,1.28245177]
[1768182842401,0.84527382,3129.2,3128.3,1.28245177]
[1768182842702,0.84527382,3129.1,3128.3,1.28245177]
[1768182842903,0.84527382,3129.0,3128.3,1.28245177]
[1768182843199,1.376,3129.3,3128.3,1.28245177]
[1768182843400,0.84528106,3129.2,3128.3,1.28245177]
[1768182843600,0.84528106,3129.1,3128.3,1.28245177]
[1768182843800,0.84528106,3129.0,3128.3,1.28245177]
[1768182844005,1.376,3129.3,3128.3,1.28245177]
[1768182844194,0.84530744,3129.2,3128.3,1.28245177]
[1768182844394,0.84530744,3129.1,3128.3,1.28245177]
[1768182844596,0.84530744,3129.0,3128.3,1.28245177]
[1768182844796,1.376,3129.3,3128.3,1.28245177]
[1768182844996,0.84560648,3129.2,3128.3,1.28245177]
[1768182845197,0.84560648,3129.1,3128.3,1.28245177]
[1768182845405,0.84560648,3129.0,3128.3,1.28245177]
[1768182845701,1.376,3129.3,3128.3,1.28245177]
[1768182845903,0.84565366,3129.2,3128.3,1.28245177]
[1768182846104,0.84565366,3129.1,3128.3,1.28245177]
[1768182846301,0.84565366,3129.0,3128.3,1.28245177]
[1768182846503,0.27723868,3129.2,3128.3,1.28245177]
[1768182846702,0.8456824,3129.1,3128.3,1.28245177]
[1768182846905,0.8456824,3129.0,3128.3,1.28245177]